Workbook

Sheet EXISTENCIAS
B4: CODIGO | C4: DATOS X | D4: DATOS X | E4: DATOS X | F4: DATOS X | G4: STOCK
B5: 1 | G5: 2
B6: 2 | G6: 28
B7: 3 | G7: 0
B8: 4 | G8: 0
B9: 5 | G9: 24
B10: 6 | G10: 50
B11: 7 | G11: 0
B12: 8 | G12: 47
B13: 9 | G13: 42
B14: 10 | G14: 34
B15: 11 | G15: 50
B16: 12 | G16: 0
B17: 13 | G17: 72
B18: 14 | G18: 47
B19: 15 | G19: 162
B20: 16 | G20: 99
B21: 17 | G21: 1
B22: 18 | G22: 118
B23: 19 | G23: 86
B24: 20 | G24: 114
B25: 21 | G25: 114
B26: 22 | G26: 137
B27: 23 | G27: 115
B28: 24 | G28: 118
B29: 25 | G29: 101
B30: 26 | G30: 133
B31: 27 | G31: 124
B32: 28 | G32: 158
B33: 29 | G33: 146
B34: 30 | G34: 109
B35: 31 | G35: 62
B36: 32 | G36: 62
B37: 33 | G37: 92
B38: 34 | G38: 34
B39: 35 | G39: 58
B40: 36 | G40: 31
B41: 37 | G41: 29
B42: 38 | G42: 37
B43: 39 | G43: 110
B44: 40 | G44: 23
B45: 41 | G45: 1
B46: 42 | G46: 52
B47: 43 | G47: 42
B48: 44 | G48: 60
B49: 45 | G49: 42
B50: 46 | G50: 49
B51: 47 | G51: 30
B52: 48 | G52: 21
B53: 49 | G53: 51
B54: 50 | G54: 39
B55: 51 | G55: 30
B56: 52 | G56: 28
B57: 53 | G57: 30
B58: 54 | G58: 32
B59: 55 | G59: 69
B60: 56 | G60: 65
B61: 57 | G61: 118
B62: 58 | G62: 7
B63: 59 | G63: 25
B64: 60 | G64: 63
B65: 61 | G65: 6
B66: 62 | G66: 17
B67: 63 | G67: 7
B68: 64 | G68: 30
B69: 65 | G69: 11
B70: 66 | G70: 13
B71: 67 | G71: 16
B72: 68 | G72: 15
B73: 69 | G73: 6
B74: 70 | G74: 31
B75: 71 | G75: 0
B76: 72 | G76: 0
B77: 73 | G77: 51
B78: 74 | G78: 0
B79: 75 | G79: 0
B80: 76 | G80: 0
B81: 77 | G81: 0
B82: 78 | G82: 0
B83: 79 | G83: 0
B84: 80 | G84: 0
B85: 81 | G85: 0
B86: 82 | G86: 23
B87: 83 | G87: 10
B88: 84 | G88: 0
B89: 85 | G89: 6
B90: 86 | G90: 0
B91: 87 | G91: 0
B92: 88 | G92: 14
B93: 89 | G93: 16
B94: 90 | G94: 10
B95: 91 | G95: 24
B96: 92 | G96: 0
B97: 93 | G97: 8
B98: 94 | G98: 0
B99: 95 | G99: 26
B100: 96 | G100: 17
B101: 97 | G101: 0
B102: 98 | G102: 26
B103: 99 | G103: 11
B104: 100 | G104: 23
B105: 101 | G105: 47
B106: 102 | G106: 53
B107: 103 | G107: 46
B108: 104 | G108: 34
B109: 105 | G109: 20
B110: 106 | G110: 49
B111: 107 | G111: 19
B112: 108 | G112: 29
B113: 109 | G113: 6
B114: 110 | G114: 0
B115: 111 | G115: 80
B116: 112 | G116: 78
B117: 113 | G117: 71
B118: 114 | G118: 0
B119: 115 | G119: 17
B120: 116 | G120: 25
B121: 117 | G121: 68
B122: 118 | G122: 24
B123: 119 | G123: 10
B124: 120 | G124: 99
B125: 121 | G125: 59
B126: 122 | G126: 74
B127: 123 | G127: 28
B128: 124 | G128: 19
B129: 125 | G129: 0
B130: 126 | G130: 31
B131: 127 | G131: 33
B132: 128 | G132: 30
B133: 129 | G133: 64
B134: 130 | G134: 43
B135: 131 | G135: 71
B136: 132 | G136: 54
B137: 133 | G137: 54
B138: 134 | G138: 75
B139: 135 | G139: 21
B140: 136 | G140: 40
B141: 137 | G141: 8
B142: 138 | G142: 17
B143: 139 | G143: 74
B144: 140 | G144: 66
B145: 141 | G145: 22
B146: 142 | G146: 20
B147: 143 | G147: 30
B148: 144 | G148: 0
B149: 145 | G149: 11
B150: 146 | G150: 17
B151: 147 | G151: 33
B152: 148 | G152: 44
B153: 149 | G153: 83
B154: 150 | G154: 2
B155: 151 | G155: 0
B156: 152 | G156: 18
B157: 153 | G157: 10
B158: 154 | G158: 28
B159: 155 | G159: 62
B160: 156 | G160: 50
B161: 157 | G161: 11
B162: 158 | G162: 26
B163: 159 | G163: 15
B164: 160 | G164: 157
B165: 161 | G165: 6
B166: 162 | G166: 38
B167: 163 | G167: 0
B168: 164 | G168: 28
B169: 165 | G169: 14
B170: 166 | G170: 3
B171: 167 | G171: 10
B172: 168 | G172: 4
B173: 169 | G173: 7
B174: 170 | G174: 29
B175: 171 | G175: 85
B176: 172 | G176: 0
B177: 173 | G177: 20
B178: 174 | G178: 35
B179: 175 | G179: 0
B180: 176 | G180: 20
B181: 177 | G181: 25
B182: 178 | G182: 0
B183: 179 | G183: 0
B184: 180 | G184: 7
B185: 181 | G185: 8
B186: 182 | G186: 0
B187: 183 | G187: 6
B188: 184 | G188: 7
B189: 185 | G189: 9
B190: 186 | G190: 0
B191: 187 | G191: 0
B192: 188 | G192: 4
B193: 189 | G193: 4
B194: 190 | G194: 48
B195: 191 | G195: 0
B196: 192 | G196: 16
B197: 193 | G197: 3
B198: 194 | G198: 20
B199: 195 | G199: 2
B200: 196 | G200: 4
B201: 197 | G201: 20
B202: 198 | G202: 10
B203: 199 | G203: 4
... 976 more rows

Sheet MOVIMIENTOS
B1: CODIGO | C1: ARTICULO | D1: FECHA | E1: INGRESO | F1: SALIDA | G1: STOCK
B2: 0049-A-65 | C2: DATOS X | D2: 2017-03-27 | E2: DATOS X | F2: 1 | G2: DATOS X
B3: 0096-B-32 | C3: DATOS X | D3: 2017-03-27 | E3: DATOS X | F3: 2 | G3: DATOS X
B4: 0103-B-39 | C4: DATOS X | D4: 2017-03-28 | E4: DATOS X | F4: 3 | G4: DATOS X
B5: 0110-B-46 | C5: DATOS X | D5: 2017-03-29 | E5: DATOS X | F5: 4 | G5: DATOS X
B6: 0111-B-47 | C6: DATOS X | D6: 2017-03-30 | E6: DATOS X | F6: 5 | G6: DATOS X
B7: 0119-B-55 | C7: DATOS X | D7: 2017-03-31 | E7: DATOS X | F7: 6 | G7: DATOS X
B8: 0119-B-56 | C8: DATOS X | D8: 2017-04-01 | E8: DATOS X | F8: 6 | G8: DATOS X
B9: 0119-B-57 | C9: DATOS X | D9: 2017-04-02 | E9: DATOS X | F9: 6 | G9: DATOS X
B10: 0119-B-58 | C10: DATOS X | D10: 2017-04-03 | E10: DATOS X | F10: 6 | G10: DATOS X
B11: 0119-B-59 | C11: DATOS X | D11: 2017-04-04 | E11: DATOS X | F11: 6 | G11: DATOS X
B12: 0119-B-60 | C12: DATOS X | D12: 2017-04-05 | E12: DATOS X | F12: 6 | G12: DATOS X
B13: 0119-B-61 | C13: DATOS X | D13: 2017-04-06 | E13: DATOS X | F13: 6 | G13: DATOS X
B14: 0119-B-62 | C14: DATOS X | D14: 2017-04-07 | E14: DATOS X | F14: 6 | G14: DATOS X
B15: 0119-B-63 | C15: DATOS X | D15: 2017-04-08 | E15: DATOS X | F15: 6 | G15: DATOS X
B16: 0119-B-64 | C16: DATOS X | D16: 2017-04-09 | E16: DATOS X | F16: 6 | G16: DATOS X
B17: 0119-B-65 | C17: DATOS X | D17: 2017-04-10 | E17: DATOS X | F17: 6 | G17: DATOS X
B18: 0119-B-66 | C18: DATOS X | D18: 2017-04-11 | E18: DATOS X | F18: 6 | G18: DATOS X
B19: 0119-B-67 | C19: DATOS X | D19: 2017-04-12 | E19: DATOS X | F19: 6 | G19: DATOS X
B20: 0119-B-68 | C20: DATOS X | D20: 2017-04-13 | E20: DATOS X | F20: 6 | G20: DATOS X
B21: 0119-B-69 | C21: DATOS X | D21: 2017-04-14 | E21: DATOS X | F21: 6 | G21: DATOS X
B22: 0119-B-70 | C22: DATOS X | D22: 2017-04-15 | E22: DATOS X | F22: 6 | G22: DATOS X
B23: 0119-B-71 | C23: DATOS X | D23: 2017-04-16 | E23: DATOS X | F23: 6 | G23: DATOS X
B24: 0119-B-72 | C24: DATOS X | D24: 2017-04-17 | E24: DATOS X | F24: 6 | G24: DATOS X
B25: 0005-A-21 | C25: DATOS X | D25: 2017-04-18 | F25: 20 | G25: DATOS X
B26: 0006-A-22 | C26: DATOS X | D26: 2017-04-19 | F26: 50 | G26: DATOS X
B27: 0005-A-21 | C27: DATOS X | D27: 2017-04-20 | F27: 1 | G27: DATOS X
B28: 0001-A-16 | C28: DATOS X | D28: 2017-04-21 | F28: 2 | G28: DATOS X
B29: 0003-A-19 | C29: DATOS X | D29: 2017-04-22 | F29: 1200 | G29: DATOS X
B30: 0007-A-23 | C30: DATOS X | D30: 2017-04-23 | F30: 500 | G30: DATOS X
B31: 0014-A-30 | C31: DATOS X | D31: 2017-04-24 | F31: 5000 | G31: DATOS X
B32: 0913-7PK-1640 | C32: DATOS X | D32: 2017-04-25 | F32: 646556 | G32: DATOS X
B33: 0005-A-21 | C33: DATOS X | D33: 2017-04-26 | F33: 2500 | G33: DATOS X
B34: 0002-A-17 | C34: DATOS X | D34: 2017-04-27 | F34: 4500 | G34: DATOS X
B35: 0001-A-16 | C35: DATOS X | D35: 2017-04-28 | F35: 5000 | G35: DATOS X
B36: 0003-A-19 | C36: DATOS X | D36: 2017-04-29 | F36: 1200 | G36: DATOS X
B37: 0007-A-23 | C37: DATOS X | D37: 2017-04-30 | F37: 646565 | G37: DATOS X
B38: 0013-A-29 | C38: DATOS X | D38: 2017-05-01 | F38: 5000 | G38: DATOS X
B39: 0003-A-19 | C39: DATOS X | D39: 2017-05-02 | F39: 1500 | G39: DATOS X
B40: 0006-A-22 | C40: DATOS X | D40: 2017-05-03 | F40: 45000 | G40: DATOS X
B41: 0006-A-22 | C41: DATOS X | D41: 2017-05-04 | F41: 500 | G41: DATOS X
B42: 0330-RPF-2290 | C42: DATOS X | D42: 2017-05-05 | F42: 5000 | G42: DATOS X
B43: 0002-A-17 | C43: DATOS X | D43: 2017-05-06 | F43: 12 | G43: DATOS X
B44: 0004-A-20 | C44: DATOS X | D44: 2017-05-07 | F44: 500 | G44: DATOS X
B45: 0008-A-24 | C45: DATOS X | D45: 2017-05-08 | F45: 600 | G45: DATOS X
B46: 0002-A-17 | C46: DATOS X | D46: 2017-05-09 | F46: 1.2 | G46: DATOS X

Sheet R-SALIDAS
B1: CLIENTE | C1: FECHA | D1: CODIGO | E1: ARTICULO | F1: SALIDA | G1: OPERACIÓN
B2: CLIENTE 1 | C2: DATOS X | D2: 2017-03-27 | F2: 1 | G2: DATOS X
B3: CLIENTE 2 | C3: DATOS X | D3: 2017-03-27 | F3: 2 | G3: DATOS X
B4: CLIENTE 3 | C4: DATOS X | D4: 2017-03-28 | F4: 3 | G4: DATOS X | L4: DISCULPEN LA MOLESTIA, QUISERA EN MI AGREGAR (ASI COMO TENGO EN MI FORMULARIO UN LABEL TOTAL) UNA FORMA DE PODER VER EL STOCK DEL CODIGO . CUANDO SELECCIONO O SE VEA. BUENO SOLO POR AHORA QUISIERA QUE SE MUESTRE . COMO PRUEBA PARA PODER MAS ADELANTE AGREGARLE O MEJORARLO AUN MAS MI MODESTO INVENTARIO. GRACIAS POR AYUDA Y ESTE FORM . ES GRACIAS A ENIGMA25 TODOS LOS CREDITOS A EL
B5: CLIENTE 4 | C5: DATOS X | D5: 2017-03-29 | F5: 4 | G5: DATOS X
B6: CLIENTE 5 | C6: DATOS X | D6: 2017-03-30 | F6: 5 | G6: DATOS X
B7: CLIENTE 6 | C7: DATOS X | D7: 2017-03-31 | F7: 6 | G7: DATOS X
B8: CLIENTE 7 | C8: DATOS X | D8: 2017-04-01 | F8: 6 | G8: DATOS X
B9: CLIENTE 8 | C9: DATOS X | D9: 2017-04-02 | F9: 6 | G9: DATOS X
B10: CLIENTE 9 | C10: DATOS X | D10: 2017-04-03 | F10: 6 | G10: DATOS X
B11: CLIENTE 10 | C11: DATOS X | D11: 2017-04-04 | F11: 6 | G11: DATOS X
B12: CLIENTE 11 | C12: DATOS X | D12: 2017-04-05 | F12: 6 | G12: DATOS X
B13: CLIENTE 12 | C13: DATOS X | D13: 2017-04-06 | F13: 6 | G13: DATOS X
B14: CLIENTE 13 | C14: DATOS X | D14: 2017-04-07 | F14: 6 | G14: DATOS X
B15: CLIENTE 14 | C15: DATOS X | D15: 2017-04-08 | F15: 6 | G15: DATOS X
B16: CLIENTE 15 | C16: DATOS X | D16: 2017-04-09 | F16: 6 | G16: DATOS X | L16: EN LA HOJA DATOS SE ENCUENTRA EL STOCK
B17: CLIENTE 16 | C17: DATOS X | D17: 2017-04-10 | F17: 6 | G17: DATOS X | L17: QUISIERA VER EL STOCK DEL PRODUCTO
B18: CLIENTE 17 | C18: DATOS X | D18: 2017-04-11 | F18: 6 | G18: DATOS X
B19: CLIENTE 18 | C19: DATOS X | D19: 2017-04-12 | F19: 6 | G19: DATOS X
B20: CLIENTE 19 | C20: DATOS X | D20: 2017-04-13 | F20: 6 | G20: DATOS X
B21: CLIENTE 20 | C21: DATOS X | D21: 2017-04-14 | F21: 6 | G21: DATOS X | L21: bueno si alguien le puede agregar este fondo a mi formulario estaria genial para que me ayude con la vision
B22: CLIENTE 21 | C22: DATOS X | D22: 2017-04-15 | F22: 6 | G22: DATOS X
B23: CLIENTE 22 | C23: DATOS X | D23: 2017-04-16 | F23: 6 | G23: DATOS X
B24: CLIENTE 23 | C24: DATOS X | D24: 2017-04-17 | F24: 6 | G24: DATOS X
B25: CLIENTE 24 | C25: DATOS X | D25: 2017-04-18 | F25: 20 | G25: DATOS X
B26: CLIENTE 25 | C26: DATOS X | D26: 2017-04-19 | F26: 50 | G26: DATOS X
B27: CLIENTE 26 | C27: DATOS X | D27: 2017-04-20 | F27: 1 | G27: DATOS X
B28: CLIENTE 27 | C28: DATOS X | D28: 2017-04-21 | F28: 2 | G28: DATOS X
B29: CLIENTE 28 | C29: DATOS X | D29: 2017-04-22 | F29: 1200 | G29: DATOS X
B30: CLIENTE 29 | C30: DATOS X | D30: 2017-04-23 | F30: 500 | G30: DATOS X
B31: CLIENTE 30 | C31: DATOS X | D31: 2017-04-24 | F31: 5000 | G31: DATOS X
B32: CLIENTE 31 | C32: DATOS X | D32: 2017-04-25 | F32: 646556 | G32: DATOS X
B33: CLIENTE 32 | C33: DATOS X | D33: 2017-04-26 | F33: 2500 | G33: DATOS X
B34: CLIENTE 33 | C34: DATOS X | D34: 2017-04-27 | F34: 4500 | G34: DATOS X
B35: CLIENTE 34 | C35: DATOS X | D35: 2017-04-28 | F35: 5000 | G35: DATOS X
B36: CLIENTE 35 | C36: DATOS X | D36: 2017-04-29 | F36: 1200 | G36: DATOS X
B37: CLIENTE 36 | C37: DATOS X | D37: 2017-04-30 | F37: 646565 | G37: DATOS X
B38: CLIENTE 37 | C38: DATOS X | D38: 2017-05-01 | F38: 5000 | G38: DATOS X
B39: CLIENTE 38 | C39: DATOS X | D39: 2017-05-02 | F39: 1500 | G39: DATOS X
B40: CLIENTE 39 | C40: DATOS X | D40: 2017-05-03 | F40: 45000 | G40: DATOS X
B41: CLIENTE 40 | C41: DATOS X | D41: 2017-05-04 | F41: 500 | G41: DATOS X
B42: CLIENTE 41 | C42: DATOS X | D42: 2017-05-05 | F42: 5000 | G42: DATOS X
B43: CLIENTE 42 | C43: DATOS X | D43: 2017-05-06 | F43: 12 | G43: DATOS X
B44: CLIENTE 43 | C44: DATOS X | D44: 2017-05-07 | F44: 500 | G44: DATOS X
B45: CLIENTE 44 | C45: DATOS X | D45: 2017-05-08 | F45: 600 | G45: DATOS X
B46: CLIENTE 45 | C46: DATOS X | D46: 2017-05-09 | F46: 1.2 | G46: DATOS X
B47: CLIENTE 46 | C47: DATOS X | D47: 2017-03-27 | F47: 74993.61172 | G47: DATOS X
B48: CLIENTE 47 | C48: DATOS X | D48: 2017-03-27 | F48: 76929.24682 | G48: DATOS X
B49: CLIENTE 48 | C49: DATOS X | D49: 2017-03-28 | F49: 78864.88191 | G49: DATOS X
B50: CLIENTE 49 | C50: DATOS X | D50: 2017-03-29 | F50: 80800.51701 | G50: DATOS X
B51: CLIENTE 50 | D51: 0079-A-100 | F51: 5
C52: 2017-10-05 | D52: 1903-03-18 | F52: 6

Sheet DATOS
A1: CODIGO | B1: STOCK
A2: 1 | B2: =VLOOKUP(A2,EXISTENCIAS!B4:G1179,6,0) -> 2
A3: 2 | B3: =VLOOKUP(A3,EXISTENCIAS!B5:G1180,6,0) -> 28
A4: 3 | B4: =VLOOKUP(A4,EXISTENCIAS!B6:G1181,6,0) -> 0
A5: 4 | B5: =VLOOKUP(A5,EXISTENCIAS!B7:G1182,6,0) -> 0
A6: 5 | B6: =VLOOKUP(A6,EXISTENCIAS!B8:G1183,6,0) -> 24
A7: 6 | B7: =VLOOKUP(A7,EXISTENCIAS!B9:G1184,6,0) -> 50
A8: 7 | B8: =VLOOKUP(A8,EXISTENCIAS!B10:G1185,6,0) -> 0
A9: 8 | B9: =VLOOKUP(A9,EXISTENCIAS!B11:G1186,6,0) -> 47
A10: 9 | B10: =VLOOKUP(A10,EXISTENCIAS!B12:G1187,6,0) -> 42
A11: 10 | B11: =VLOOKUP(A11,EXISTENCIAS!B13:G1188,6,0) -> 34
A12: 11 | B12: =VLOOKUP(A12,EXISTENCIAS!B14:G1189,6,0) -> 50
A13: 12 | B13: =VLOOKUP(A13,EXISTENCIAS!B15:G1190,6,0) -> 0
A14: 13 | B14: =VLOOKUP(A14,EXISTENCIAS!B16:G1191,6,0) -> 72
A15: 14 | B15: =VLOOKUP(A15,EXISTENCIAS!B17:G1192,6,0) -> 47
A16: 15 | B16: =VLOOKUP(A16,EXISTENCIAS!B18:G1193,6,0) -> 162
A17: 16 | B17: =VLOOKUP(A17,EXISTENCIAS!B19:G1194,6,0) -> 99
A18: 17 | B18: =VLOOKUP(A18,EXISTENCIAS!B20:G1195,6,0) -> 1
A19: 18 | B19: =VLOOKUP(A19,EXISTENCIAS!B21:G1196,6,0) -> 118
A20: 19 | B20: =VLOOKUP(A20,EXISTENCIAS!B22:G1197,6,0) -> 86
A21: 20 | B21: =VLOOKUP(A21,EXISTENCIAS!B23:G1198,6,0) -> 114
A22: 21 | B22: =VLOOKUP(A22,EXISTENCIAS!B24:G1199,6,0) -> 114
A23: 22 | B23: =VLOOKUP(A23,EXISTENCIAS!B25:G1200,6,0) -> 137
A24: 23 | B24: =VLOOKUP(A24,EXISTENCIAS!B26:G1201,6,0) -> 115
A25: 24 | B25: =VLOOKUP(A25,EXISTENCIAS!B27:G1202,6,0) -> 118
A26: 25 | B26: =VLOOKUP(A26,EXISTENCIAS!B28:G1203,6,0) -> 101
A27: 26 | B27: =VLOOKUP(A27,EXISTENCIAS!B29:G1204,6,0) -> 133
A28: 27 | B28: =VLOOKUP(A28,EXISTENCIAS!B30:G1205,6,0) -> 124
A29: 28 | B29: =VLOOKUP(A29,EXISTENCIAS!B31:G1206,6,0) -> 158
A30: 29 | B30: =VLOOKUP(A30,EXISTENCIAS!B32:G1207,6,0) -> 146
A31: 30 | B31: =VLOOKUP(A31,EXISTENCIAS!B33:G1208,6,0) -> 109
A32: 31 | B32: =VLOOKUP(A32,EXISTENCIAS!B34:G1209,6,0) -> 62
A33: 32 | B33: =VLOOKUP(A33,EXISTENCIAS!B35:G1210,6,0) -> 62
A34: 33 | B34: =VLOOKUP(A34,EXISTENCIAS!B36:G1211,6,0) -> 92
A35: 34 | B35: =VLOOKUP(A35,EXISTENCIAS!B37:G1212,6,0) -> 34
A36: 35 | B36: =VLOOKUP(A36,EXISTENCIAS!B38:G1213,6,0) -> 58
A37: 36 | B37: =VLOOKUP(A37,EXISTENCIAS!B39:G1214,6,0) -> 31
A38: 37 | B38: =VLOOKUP(A38,EXISTENCIAS!B40:G1215,6,0) -> 29
A39: 38 | B39: =VLOOKUP(A39,EXISTENCIAS!B41:G1216,6,0) -> 37
A40: 39 | B40: =VLOOKUP(A40,EXISTENCIAS!B42:G1217,6,0) -> 110
A41: 40 | B41: =VLOOKUP(A41,EXISTENCIAS!B43:G1218,6,0) -> 23
A42: 41 | B42: =VLOOKUP(A42,EXISTENCIAS!B44:G1219,6,0) -> 1
A43: 42 | B43: =VLOOKUP(A43,EXISTENCIAS!B45:G1220,6,0) -> 52
A44: 43 | B44: =VLOOKUP(A44,EXISTENCIAS!B46:G1221,6,0) -> 42
A45: 44 | B45: =VLOOKUP(A45,EXISTENCIAS!B47:G1222,6,0) -> 60
A46: 45 | B46: =VLOOKUP(A46,EXISTENCIAS!B48:G1223,6,0) -> 42
A47: 46 | B47: =VLOOKUP(A47,EXISTENCIAS!B49:G1224,6,0) -> 49
A48: 47 | B48: =VLOOKUP(A48,EXISTENCIAS!B50:G1225,6,0) -> 30
A49: 48 | B49: =VLOOKUP(A49,EXISTENCIAS!B51:G1226,6,0) -> 21
A50: 49 | B50: =VLOOKUP(A50,EXISTENCIAS!B52:G1227,6,0) -> 51
A51: 50 | B51: =VLOOKUP(A51,EXISTENCIAS!B53:G1228,6,0) -> 39
A52: 51 | B52: =VLOOKUP(A52,EXISTENCIAS!B54:G1229,6,0) -> 30
A53: 52 | B53: =VLOOKUP(A53,EXISTENCIAS!B55:G1230,6,0) -> 28
A54: 53 | B54: =VLOOKUP(A54,EXISTENCIAS!B56:G1231,6,0) -> 30
A55: 54 | B55: =VLOOKUP(A55,EXISTENCIAS!B57:G1232,6,0) -> 32
A56: 55 | B56: =VLOOKUP(A56,EXISTENCIAS!B58:G1233,6,0) -> 69
A57: 56 | B57: =VLOOKUP(A57,EXISTENCIAS!B59:G1234,6,0) -> 65
A58: 57 | B58: =VLOOKUP(A58,EXISTENCIAS!B60:G1235,6,0) -> 118
A59: 58 | B59: =VLOOKUP(A59,EXISTENCIAS!B61:G1236,6,0) -> 7
A60: 59 | B60: =VLOOKUP(A60,EXISTENCIAS!B62:G1237,6,0) -> 25
A61: 60 | B61: =VLOOKUP(A61,EXISTENCIAS!B63:G1238,6,0) -> 63
A62: 61 | B62: =VLOOKUP(A62,EXISTENCIAS!B64:G1239,6,0) -> 6
A63: 62 | B63: =VLOOKUP(A63,EXISTENCIAS!B65:G1240,6,0) -> 17
A64: 63 | B64: =VLOOKUP(A64,EXISTENCIAS!B66:G1241,6,0) -> 7
A65: 64 | B65: =VLOOKUP(A65,EXISTENCIAS!B67:G1242,6,0) -> 30
A66: 65 | B66: =VLOOKUP(A66,EXISTENCIAS!B68:G1243,6,0) -> 11
A67: 66 | B67: =VLOOKUP(A67,EXISTENCIAS!B69:G1244,6,0) -> 13
A68: 67 | B68: =VLOOKUP(A68,EXISTENCIAS!B70:G1245,6,0) -> 16
A69: 68 | B69: =VLOOKUP(A69,EXISTENCIAS!B71:G1246,6,0) -> 15
A70: 69 | B70: =VLOOKUP(A70,EXISTENCIAS!B72:G1247,6,0) -> 6
A71: 70 | B71: =VLOOKUP(A71,EXISTENCIAS!B73:G1248,6,0) -> 31
A72: 71 | B72: =VLOOKUP(A72,EXISTENCIAS!B74:G1249,6,0) -> 0
A73: 72 | B73: =VLOOKUP(A73,EXISTENCIAS!B75:G1250,6,0) -> 0
A74: 73 | B74: =VLOOKUP(A74,EXISTENCIAS!B76:G1251,6,0) -> 51
A75: 74 | B75: =VLOOKUP(A75,EXISTENCIAS!B77:G1252,6,0) -> 0
A76: 75 | B76: =VLOOKUP(A76,EXISTENCIAS!B78:G1253,6,0) -> 0
A77: 76 | B77: =VLOOKUP(A77,EXISTENCIAS!B79:G1254,6,0) -> 0
A78: 77 | B78: =VLOOKUP(A78,EXISTENCIAS!B80:G1255,6,0) -> 0
A79: 78 | B79: =VLOOKUP(A79,EXISTENCIAS!B81:G1256,6,0) -> 0
A80: 79 | B80: =VLOOKUP(A80,EXISTENCIAS!B82:G1257,6,0) -> 0
A81: 80 | B81: =VLOOKUP(A81,EXISTENCIAS!B83:G1258,6,0) -> 0
A82: 81 | B82: =VLOOKUP(A82,EXISTENCIAS!B84:G1259,6,0) -> 0
A83: 82 | B83: =VLOOKUP(A83,EXISTENCIAS!B85:G1260,6,0) -> 23
A84: 83 | B84: =VLOOKUP(A84,EXISTENCIAS!B86:G1261,6,0) -> 10
A85: 84 | B85: =VLOOKUP(A85,EXISTENCIAS!B87:G1262,6,0) -> 0
A86: 85 | B86: =VLOOKUP(A86,EXISTENCIAS!B88:G1263,6,0) -> 6
A87: 86 | B87: =VLOOKUP(A87,EXISTENCIAS!B89:G1264,6,0) -> 0
A88: 87 | B88: =VLOOKUP(A88,EXISTENCIAS!B90:G1265,6,0) -> 0
A89: 88 | B89: =VLOOKUP(A89,EXISTENCIAS!B91:G1266,6,0) -> 14
A90: 89 | B90: =VLOOKUP(A90,EXISTENCIAS!B92:G1267,6,0) -> 16
A91: 90 | B91: =VLOOKUP(A91,EXISTENCIAS!B93:G1268,6,0) -> 10
A92: 91 | B92: =VLOOKUP(A92,EXISTENCIAS!B94:G1269,6,0) -> 24
A93: 92 | B93: =VLOOKUP(A93,EXISTENCIAS!B95:G1270,6,0) -> 0
A94: 93 | B94: =VLOOKUP(A94,EXISTENCIAS!B96:G1271,6,0) -> 8
A95: 94 | B95: =VLOOKUP(A95,EXISTENCIAS!B97:G1272,6,0) -> 0
A96: 95 | B96: =VLOOKUP(A96,EXISTENCIAS!B98:G1273,6,0) -> 26
A97: 96 | B97: =VLOOKUP(A97,EXISTENCIAS!B99:G1274,6,0) -> 17
A98: 97 | B98: =VLOOKUP(A98,EXISTENCIAS!B100:G1275,6,0) -> 0
A99: 98 | B99: =VLOOKUP(A99,EXISTENCIAS!B101:G1276,6,0) -> 26
A100: 99 | B100: =VLOOKUP(A100,EXISTENCIAS!B102:G1277,6,0) -> 11
A101: 100 | B101: =VLOOKUP(A101,EXISTENCIAS!B103:G1278,6,0) -> 23
A102: 101 | B102: =VLOOKUP(A102,EXISTENCIAS!B104:G1279,6,0) -> 47
A103: 102 | B103: =VLOOKUP(A103,EXISTENCIAS!B105:G1280,6,0) -> 53
A104: 103 | B104: =VLOOKUP(A104,EXISTENCIAS!B106:G1281,6,0) -> 46
A105: 104 | B105: =VLOOKUP(A105,EXISTENCIAS!B107:G1282,6,0) -> 34
A106: 105 | B106: =VLOOKUP(A106,EXISTENCIAS!B108:G1283,6,0) -> 20
A107: 106 | B107: =VLOOKUP(A107,EXISTENCIAS!B109:G1284,6,0) -> 49
A108: 107 | B108: =VLOOKUP(A108,EXISTENCIAS!B110:G1285,6,0) -> 19
A109: 108 | B109: =VLOOKUP(A109,EXISTENCIAS!B111:G1286,6,0) -> 29
A110: 109 | B110: =VLOOKUP(A110,EXISTENCIAS!B112:G1287,6,0) -> 6
A111: 110 | B111: =VLOOKUP(A111,EXISTENCIAS!B113:G1288,6,0) -> 0
A112: 111 | B112: =VLOOKUP(A112,EXISTENCIAS!B114:G1289,6,0) -> 80
A113: 112 | B113: =VLOOKUP(A113,EXISTENCIAS!B115:G1290,6,0) -> 78
A114: 113 | B114: =VLOOKUP(A114,EXISTENCIAS!B116:G1291,6,0) -> 71
A115: 114 | B115: =VLOOKUP(A115,EXISTENCIAS!B117:G1292,6,0) -> 0
A116: 115 | B116: =VLOOKUP(A116,EXISTENCIAS!B118:G1293,6,0) -> 17
A117: 116 | B117: =VLOOKUP(A117,EXISTENCIAS!B119:G1294,6,0) -> 25
A118: 117 | B118: =VLOOKUP(A118,EXISTENCIAS!B120:G1295,6,0) -> 68
A119: 118 | B119: =VLOOKUP(A119,EXISTENCIAS!B121:G1296,6,0) -> 24
A120: 119 | B120: =VLOOKUP(A120,EXISTENCIAS!B122:G1297,6,0) -> 10
A121: 120 | B121: =VLOOKUP(A121,EXISTENCIAS!B123:G1298,6,0) -> 99
A122: 121 | B122: =VLOOKUP(A122,EXISTENCIAS!B124:G1299,6,0) -> 59
A123: 122 | B123: =VLOOKUP(A123,EXISTENCIAS!B125:G1300,6,0) -> 74
A124: 123 | B124: =VLOOKUP(A124,EXISTENCIAS!B126:G1301,6,0) -> 28
A125: 124 | B125: =VLOOKUP(A125,EXISTENCIAS!B127:G1302,6,0) -> 19
A126: 125 | B126: =VLOOKUP(A126,EXISTENCIAS!B128:G1303,6,0) -> 0
A127: 126 | B127: =VLOOKUP(A127,EXISTENCIAS!B129:G1304,6,0) -> 31
A128: 127 | B128: =VLOOKUP(A128,EXISTENCIAS!B130:G1305,6,0) -> 33
A129: 128 | B129: =VLOOKUP(A129,EXISTENCIAS!B131:G1306,6,0) -> 30
A130: 129 | B130: =VLOOKUP(A130,EXISTENCIAS!B132:G1307,6,0) -> 64
A131: 130 | B131: =VLOOKUP(A131,EXISTENCIAS!B133:G1308,6,0) -> 43
A132: 131 | B132: =VLOOKUP(A132,EXISTENCIAS!B134:G1309,6,0) -> 71
A133: 132 | B133: =VLOOKUP(A133,EXISTENCIAS!B135:G1310,6,0) -> 54
A134: 133 | B134: =VLOOKUP(A134,EXISTENCIAS!B136:G1311,6,0) -> 54
A135: 134 | B135: =VLOOKUP(A135,EXISTENCIAS!B137:G1312,6,0) -> 75
A136: 135 | B136: =VLOOKUP(A136,EXISTENCIAS!B138:G1313,6,0) -> 21
A137: 136 | B137: =VLOOKUP(A137,EXISTENCIAS!B139:G1314,6,0) -> 40
A138: 137 | B138: =VLOOKUP(A138,EXISTENCIAS!B140:G1315,6,0) -> 8
A139: 138 | B139: =VLOOKUP(A139,EXISTENCIAS!B141:G1316,6,0) -> 17
A140: 139 | B140: =VLOOKUP(A140,EXISTENCIAS!B142:G1317,6,0) -> 74
A141: 140 | B141: =VLOOKUP(A141,EXISTENCIAS!B143:G1318,6,0) -> 66
A142: 141 | B142: =VLOOKUP(A142,EXISTENCIAS!B144:G1319,6,0) -> 22
A143: 142 | B143: =VLOOKUP(A143,EXISTENCIAS!B145:G1320,6,0) -> 20
A144: 143 | B144: =VLOOKUP(A144,EXISTENCIAS!B146:G1321,6,0) -> 30
A145: 144 | B145: =VLOOKUP(A145,EXISTENCIAS!B147:G1322,6,0) -> 0
A146: 145 | B146: =VLOOKUP(A146,EXISTENCIAS!B148:G1323,6,0) -> 11
A147: 146 | B147: =VLOOKUP(A147,EXISTENCIAS!B149:G1324,6,0) -> 17
A148: 147 | B148: =VLOOKUP(A148,EXISTENCIAS!B150:G1325,6,0) -> 33
A149: 148 | B149: =VLOOKUP(A149,EXISTENCIAS!B151:G1326,6,0) -> 44
A150: 149 | B150: =VLOOKUP(A150,EXISTENCIAS!B152:G1327,6,0) -> 83
A151: 150 | B151: =VLOOKUP(A151,EXISTENCIAS!B153:G1328,6,0) -> 2
A152: 151 | B152: =VLOOKUP(A152,EXISTENCIAS!B154:G1329,6,0) -> 0
A153: 152 | B153: =VLOOKUP(A153,EXISTENCIAS!B155:G1330,6,0) -> 18
A154: 153 | B154: =VLOOKUP(A154,EXISTENCIAS!B156:G1331,6,0) -> 10
A155: 154 | B155: =VLOOKUP(A155,EXISTENCIAS!B157:G1332,6,0) -> 28
A156: 155 | B156: =VLOOKUP(A156,EXISTENCIAS!B158:G1333,6,0) -> 62
A157: 156 | B157: =VLOOKUP(A157,EXISTENCIAS!B159:G1334,6,0) -> 50
A158: 157 | B158: =VLOOKUP(A158,EXISTENCIAS!B160:G1335,6,0) -> 11
A159: 158 | B159: =VLOOKUP(A159,EXISTENCIAS!B161:G1336,6,0) -> 26
A160: 159 | B160: =VLOOKUP(A160,EXISTENCIAS!B162:G1337,6,0) -> 15
A161: 160 | B161: =VLOOKUP(A161,EXISTENCIAS!B163:G1338,6,0) -> 157
A162: 161 | B162: =VLOOKUP(A162,EXISTENCIAS!B164:G1339,6,0) -> 6
A163: 162 | B163: =VLOOKUP(A163,EXISTENCIAS!B165:G1340,6,0) -> 38
A164: 163 | B164: =VLOOKUP(A164,EXISTENCIAS!B166:G1341,6,0) -> 0
A165: 164 | B165: =VLOOKUP(A165,EXISTENCIAS!B167:G1342,6,0) -> 28
A166: 165 | B166: =VLOOKUP(A166,EXISTENCIAS!B168:G1343,6,0) -> 14
A167: 166 | B167: =VLOOKUP(A167,EXISTENCIAS!B169:G1344,6,0) -> 3
A168: 167 | B168: =VLOOKUP(A168,EXISTENCIAS!B170:G1345,6,0) -> 10
A169: 168 | B169: =VLOOKUP(A169,EXISTENCIAS!B171:G1346,6,0) -> 4
A170: 169 | B170: =VLOOKUP(A170,EXISTENCIAS!B172:G1347,6,0) -> 7
A171: 170 | B171: =VLOOKUP(A171,EXISTENCIAS!B173:G1348,6,0) -> 29
A172: 171 | B172: =VLOOKUP(A172,EXISTENCIAS!B174:G1349,6,0) -> 85
A173: 172 | B173: =VLOOKUP(A173,EXISTENCIAS!B175:G1350,6,0) -> 0
A174: 173 | B174: =VLOOKUP(A174,EXISTENCIAS!B176:G1351,6,0) -> 20
A175: 174 | B175: =VLOOKUP(A175,EXISTENCIAS!B177:G1352,6,0) -> 35
A176: 175 | B176: =VLOOKUP(A176,EXISTENCIAS!B178:G1353,6,0) -> 0
A177: 176 | B177: =VLOOKUP(A177,EXISTENCIAS!B179:G1354,6,0) -> 20
A178: 177 | B178: =VLOOKUP(A178,EXISTENCIAS!B180:G1355,6,0) -> 25
A179: 178 | B179: =VLOOKUP(A179,EXISTENCIAS!B181:G1356,6,0) -> 0
A180: 179 | B180: =VLOOKUP(A180,EXISTENCIAS!B182:G1357,6,0) -> 0
A181: 180 | B181: =VLOOKUP(A181,EXISTENCIAS!B183:G1358,6,0) -> 7
A182: 181 | B182: =VLOOKUP(A182,EXISTENCIAS!B184:G1359,6,0) -> 8
A183: 182 | B183: =VLOOKUP(A183,EXISTENCIAS!B185:G1360,6,0) -> 0
A184: 183 | B184: =VLOOKUP(A184,EXISTENCIAS!B186:G1361,6,0) -> 6
A185: 184 | B185: =VLOOKUP(A185,EXISTENCIAS!B187:G1362,6,0) -> 7
A186: 185 | B186: =VLOOKUP(A186,EXISTENCIAS!B188:G1363,6,0) -> 9
A187: 186 | B187: =VLOOKUP(A187,EXISTENCIAS!B189:G1364,6,0) -> 0
A188: 187 | B188: =VLOOKUP(A188,EXISTENCIAS!B190:G1365,6,0) -> 0
A189: 188 | B189: =VLOOKUP(A189,EXISTENCIAS!B191:G1366,6,0) -> 4
A190: 189 | B190: =VLOOKUP(A190,EXISTENCIAS!B192:G1367,6,0) -> 4
A191: 190 | B191: =VLOOKUP(A191,EXISTENCIAS!B193:G1368,6,0) -> 48
A192: 191 | B192: =VLOOKUP(A192,EXISTENCIAS!B194:G1369,6,0) -> 0
A193: 192 | B193: =VLOOKUP(A193,EXISTENCIAS!B195:G1370,6,0) -> 16
A194: 193 | B194: =VLOOKUP(A194,EXISTENCIAS!B196:G1371,6,0) -> 3
A195: 194 | B195: =VLOOKUP(A195,EXISTENCIAS!B197:G1372,6,0) -> 20
A196: 195 | B196: =VLOOKUP(A196,EXISTENCIAS!B198:G1373,6,0) -> 2
A197: 196 | B197: =VLOOKUP(A197,EXISTENCIAS!B199:G1374,6,0) -> 4
A198: 197 | B198: =VLOOKUP(A198,EXISTENCIAS!B200:G1375,6,0) -> 20
A199: 198 | B199: =VLOOKUP(A199,EXISTENCIAS!B201:G1376,6,0) -> 10
A200: 199 | B200: =VLOOKUP(A200,EXISTENCIAS!B202:G1377,6,0) -> 4
... 977 more rows
